fUSD/lending_fUSD_20260313
["ID","MTS","AMOUNT","RATE_DAILY","PERIOD"]
[408318193,1773411033392,-500.0,0.00019721,2]
[408318194,1773411033401,-2247.78297528,0.00019782,2]
[408318195,1773411033410,-373.34997792,0.000198,2]
[408318196,1773411033421,-526.61878349,0.000198,2]
[408318197,1773411033432,-500.0,0.00019821,2]
[408318198,1773411033443,-373.3499779,0.0001985,2]
[408318199,1773411033453,-164.50203341,0.00019873,2]
[408318200,1773411033463,-161.38631467,0.00019873,2]
[408318201,1773411033472,-500.0,0.00019873,2]
[408318202,1773411033482,-500.0,0.00019873,2]
[408318203,1773411033491,-164.27758766,0.00019873,2]
[408318204,1773411033500,-1468.60151019,0.00019879,2]
[408318205,1773411033510,-184.82940131,0.0001989,2]
[408318206,1773411033520,-502.19,0.00019899,2]
[408318207,1773411033529,-547.21007083,0.00019899,2]
[408318208,1773411033539,-500.0,0.00019899,2]
[408318209,1773411033548,-500.0,0.00019899,2]
[408318210,1773411033558,-500.0,0.00019899,2]
[408318211,1773411033573,-500.0,0.00019899,2]
[408318212,1773411033585,-500.0,0.00019899,2]
[408318213,1773411033594,-500.0,0.00019899,2]
[408318214,1773411033604,-500.0,0.00019899,2]
[408318215,1773411033616,-500.0,0.00019899,2]
[408318216,1773411033625,-607.88103677,0.00019899,2]
[408318217,1773411033635,-32947.8022,0.000199,2]
[408318218,1773411033645,-1000.0,0.000199,2]
[408318219,1773411033655,-10000.0,0.000199,2]
[408318220,1773411033664,-50112.05124873,0.000199,2]
[408318221,1773411033675,-373.3499779,0.000199,2]
[408318222,1773411033687,-1983.51650717,0.000199,3]
[408318223,1773411033698,-2437.734428,0.000199,2]
[408318224,1773411033707,-3636.23543266,0.000199,2]
[408318225,1773411033718,-2247.78297528,0.000199,2]
[408318226,1773411033727,-26954.18911606,0.000199,2]
[408318227,1773411033737,-166.66,0.00019962,2]
[408318228,1773411033747,-4610.0,0.00019973,2]
[408318229,1773411033757,-4313.0,0.00019973,2]
[408318230,1773411033767,-500.51006458,0.00019973,2]
[408318231,1773411033776,-500.36222067,0.00019973,2]
[408318232,1773411033786,-500.0,0.00019973,2]
[408318233,1773411033795,-500.47019494,0.00019973,2]
[408318234,1773411033805,-501.74650809,0.00019973,2]
[408318235,1773411033815,-5044.71326061,0.0001998,2]
[408318236,1773411033830,-1228.70968045,0.0001998,2]
[408318237,1773411033841,-567.51378114,0.0001998,2]
[408318238,1773411033855,-1800.0,0.0001998,2]
[408318239,1773411033868,-608.3968541,0.0001998,2]
[408318240,1773411034116,-2864.1474936,0.0001998,2]
[408318248,1773411037968,-4106.51396057,0.00019441,2]
[408318250,1773411037978,-315.29741052,0.00019972,2]
[408318252,1773411037988,-269.75221979,0.00019972,2]
[408318254,1773411037997,-119.37835998,0.00019972,2]
[408318255,1773411038027,-380.62164002,0.00019972,2]
[408318256,1773411038038,-500.0,0.00019972,2]
[408318257,1773411038048,-203.50969999,0.00019972,2]
[408318258,1773411038057,-7301.58091233,0.0001998,2]
[408318259,1773411038067,-184.82940131,0.0001999,2]
[408318260,1773411038076,-201.25834635,0.00019998,2]
[408318261,1773411038088,-298.74165365,0.00019998,2]
[408318262,1773411038097,-340.57723287,0.00019998,2]
[408318263,1773411038108,-159.42276713,0.00019998,2]
[408318264,1773411038117,-300.0,0.00019999,2]
[408318265,1773411038127,-666.0,0.00019999,2]
[408318266,1773411038136,-300.0,0.00019999,2]
[408318267,1773411038145,-666.0,0.00019999,2]
[408318268,1773411038154,-500.0,0.00019999,2]
[408318269,1773411038164,-500.0,0.00019999,2]
[408318270,1773411038173,-500.0,0.00019999,2]
[408318271,1773411038183,-500.0,0.00019999,2]
[408318272,1773411038192,-500.0,0.00019999,2]
[408318273,1773411038202,-500.0,0.00019999,2]
[408318274,1773411038212,-500.0,0.00019999,2]
[408318275,1773411038221,-500.0,0.00019999,2]
[408318276,1773411038231,-500.0,0.00019999,2]
[408318277,1773411038240,-500.0,0.00019999,2]
[408318278,1773411038250,-500.0,0.00019999,2]
[408318279,1773411038259,-567.23604194,0.00019999,2]
[408318280,1773411038269,-500.0,0.00019999,2]
[408318282,1773411038278,-500.0,0.00019999,2]
[408318283,1773411038287,-500.0,0.00019999,2]
[408318285,1773411038296,-500.0,0.00019999,2]
[408318287,1773411038306,-500.0,0.00019999,2]
[408318289,1773411038315,-502.6227765,0.00019999,2]
[408318291,1773411038324,-500.0,0.00019999,2]
[408318293,1773411038334,-39.12247342,0.00019999,2]
[408318295,1773411038346,-460.87752658,0.00019999,2]
[408318297,1773411038355,-335.68233981,0.00019999,2]
[408318300,1773411038367,-164.31766019,0.00019999,2]
[408318302,1773411038376,-500.0,0.00019999,2]
[408318303,1773411038385,-500.0,0.00019999,2]
[408318305,1773411038394,-492.2406426,0.00019999,2]
[408318307,1773411038403,-500.0,0.00019999,2]
[408318309,1773411038412,-500.0,0.00019999,2]
[408318311,1773411038422,-500.0,0.00019999,2]
[408318313,1773411038431,-500.0,0.00019999,2]
[408318315,1773411038440,-500.0,0.00019999,2]
[408318317,1773411038449,-107.63172262,0.00019999,2]
[408318319,1773411038461,-403.85027631,0.00019999,2]
[408318321,1773411038470,-500.0,0.00019999,2]
[408318323,1773411038480,-500.0,0.00019999,2]
[408318325,1773411038489,-500.0,0.00019999,2]
[408318327,1773411038499,-136.01520578,0.00019999,2]
[408318329,1773411038514,-363.98479422,0.00019999,2]
[408318332,1773411038524,-500.0,0.00019999,2]
[408318333,1773411038533,-500.0,0.00019999,2]
[408318336,1773411038543,-500.0,0.00019999,2]
[408318337,1773411038553,-500.0,0.00019999,2]
[408318338,1773411038563,-500.0,0.00019999,2]
[408318339,1773411038572,-500.0,0.00019999,2]
[408318340,1773411038582,-500.0,0.00019999,2]
[408318341,1773411038591,-500.0,0.00019999,2]
[408318342,1773411038600,-500.0,0.00019999,2]
[408318343,1773411038611,-500.0,0.00019999,2]
[408318344,1773411038626,-500.0,0.00019999,2]
[408318345,1773411038635,-500.0,0.00019999,2]
[408318346,1773411038645,-500.0,0.00019999,2]
[408318347,1773411038657,-509.49,0.00019999,2]
[408318348,1773411038666,-500.0,0.00019999,2]
[408318349,1773411038675,-500.0,0.00019999,2]
[408318350,1773411038688,-500.0,0.00019999,2]
[408318351,1773411038697,-500.0,0.00019999,2]
[408318352,1773411038706,-500.0,0.00019999,2]
[408318353,1773411038716,-500.0,0.00019999,2]
[408318354,1773411038725,-500.0,0.00019999,2]
[408318355,1773411038735,-500.0,0.00019999,2]
[408318356,1773411038744,-247.0340894,0.00019999,2]
[408318357,1773411038753,-500.0,0.00019999,2]
[408318358,1773411038763,-500.0,0.00019999,2]
[408318359,1773411038772,-10091.32910912,0.0002,2]
[408318360,1773411038784,-615.23046415,0.0002,2]
[408318361,1773411038795,-1724.67300933,0.0002,2]
[408318362,1773411038806,-4934.206548,0.0002,2]
[408318371,1773411040226,-4106.51396057,0.00019532,2]
[408318372,1773411040236,-757.83699553,0.000199,2]
[408318373,1773411040246,-1034.43144394,0.0002,2]
[408318374,1773411040258,-980.77845494,0.0002,2]
[408318375,1773411040508,-3333045.52600313,0.0002,2]
[408318376,1773411040520,-2315.09651318,0.0002,2]
[408318377,1773411040532,-35893.8876836,0.0002,2]
[408318378,1773411040566,-18356.25,0.0002,2]
[408318379,1773411040632,-475.80353924,0.0002,2]
[408318380,1773411040644,-15360.28370302,0.0002,2]
[408318388,1773411043270,-500.0,0.000199,2]
[408318389,1773411043282,-153.93033455,0.000199,2]
[408318390,1773411043292,-187.10966545,0.0002,2]
[408318391,1773411043304,-29752.09152498,0.0002,2]
[408318392,1773411043335,-1468.0,0.0002,2]
[408318400,1773411045913,-4106.51396057,0.00019624,2]
[408318401,1773411045922,-507108.52449198,0.0002,2]
[408318402,1773411045935,-2356.53369478,0.0002,2]
[408318403,1773411045948,-315.3145,0.0002,2]
[408318404,1773411045960,-93509.77829589,0.0002,2]
[408318405,1773411045975,-23653.0,0.0002,2]
[408318407,1773411046260,-29640.566054,0.0002,2]
[408318421,1773411160935,1999.9,0.00032876,120]
[408318424,1773411442488,5987.2,0.00032877,120]
[408318642,1773411921704,5003.0,0.00032877,120]
[408318643,1773411932830,164.15,9.137e-05,2]
[408318644,1773411936124,-250.0,0.00015,2]
[408318645,1773411936145,-300.0,0.00016499,2]
[408318646,1773411936165,-262.12421378,0.00016499,2]
[408318648,1773412043128,-170.64325427,0.000164,2]
[408318649,1773412043149,-594.65561593,0.00016499,2]
[408318650,1773412158085,-343.22017029,0.00016499,2]
[408318651,1773412158106,-422.79322331,0.00016499,2]
[408318652,1773412168328,-127.20677669,0.00016499,2]
[408318653,1773412168348,-300.0,0.00016499,2]
[408318654,1773412168369,-300.0,0.00016499,2]
[408318655,1773412168389,-2500.0,0.000165,2]
[408318656,1773412168409,-600.0,0.000165,2]
[408318657,1773412168431,-500.0,0.000165,2]
[408318658,1773412168453,-2500.0,0.000165,2]
[408318659,1773412168474,-300.0,0.000165,2]
[408318660,1773412168497,-600.0,0.000165,2]
[408318661,1773412168520,-500.0,0.000165,2]
[408318662,1773412168542,-250.0,0.000165,2]
[408318663,1773412168565,-2497.98305251,0.00017053,2]
[408318677,1773412232284,-2166.95102273,0.000176,2]
[408318678,1773412232294,-300.0,0.00018148,2]
[408318679,1773412232303,-257.11442487,0.00018148,2]
[408318680,1773412232315,-42.88557513,0.00018148,2]
[408318681,1773412232324,-1200.0,0.00018148,2]
[408318682,1773412232334,-2500.0,0.00018149,2]
[408318683,1773412232344,-2500.0,0.00018149,2]
[408318684,1773412232353,-500.0,0.00018413,2]
[408318685,1773412232363,-2217.05,0.00018485,2]
[408318686,1773412232372,-292.79353206,0.0001852,2]
[408318687,1773412232382,-371.421507,0.0001862,7]
[408318688,1773412232391,-188.67257488,0.0001862,2]
[408318689,1773412232400,-10230.25,0.00018695,2]
[408318690,1773412232410,-1697.56,0.00018734,2]
[408318691,1773412232419,-2500.0,0.00018758,2]
[408318692,1773412232429,-3240.0,0.00018781,2]
[408318693,1773412232439,-2000.0,0.00018781,2]
[408318694,1773412232450,-292.79353207,0.000188,2]
[408318695,1773412232460,-292.79353206,0.00018926,2]
[408318696,1773412232469,-1174.55140768,0.00019098,2]
[408318697,1773412232479,-1781.35,0.00019108,2]
[408318698,1773412232488,-160.0,0.00019119,2]
[408318699,1773412232498,-156.57,0.00019127,2]
[408318700,1773412232507,-195.0,0.00019361,2]
[408318701,1773412232517,-252.14460144,0.00019361,2]
[408318702,1773412232527,-4139.3298,0.000196,2]
[408318703,1773412232536,-1625.74824036,0.00019699,2]
[408318704,1773412232545,-278.0,0.00019699,2]
[408318705,1773412232555,-45565.1315,0.000197,2]
[408318706,1773412232564,-234.5008,0.000197,2]
[408318707,1773412232573,-5000.0,0.000197,2]
[408318708,1773412232583,-10287.24799925,0.000197,2]
[408318709,1773412232593,-448.42825178,0.00019704,2]
[408318710,1773412232603,-1625.7482403,0.00019721,2]
[408318711,1773412232612,-10287.24799925,0.00019722,2]
[408318712,1773412232622,-1625.7482403,0.00019744,2]
[408318713,1773412232631,-10287.24799925,0.00019744,2]
[408318714,1773412232640,-1625.7482403,0.00019766,2]
[408318715,1773412232649,-10287.24799925,0.00019767,2]
[408318716,1773412232658,-500.0,0.00019773,2]
[408318717,1773412232668,-500.0,0.00019773,2]
[408318718,1773412232677,-1625.7482403,0.00019788,2]
[408318719,1773412232686,-10287.24799925,0.00019789,2]
[408318720,1773412232695,-420.0,0.00019798,2]
[408318721,1773412232704,-500.0,0.00019799,2]
[408318722,1773412232713,-500.0,0.00019799,2]
[408318723,1773412232722,-500.0,0.00019799,2]
[408318724,1773412232731,-500.0,0.00019799,2]
[408318725,1773412232741,-500.0,0.00019799,2]
[408318726,1773412232753,-500.0,0.00019799,2]
[408318727,1773412232763,-500.0,0.00019799,2]
[408318728,1773412232772,-183.09,0.00019799,2]
[408318729,1773412232781,-500.0,0.00019799,2]
[408318730,1773412232790,-416.74868651,0.00019799,2]
[408318731,1773412232802,-83.25131349,0.00019799,2]
[408318732,1773412232811,-500.0,0.00019799,2]
[408318733,1773412232820,-500.0,0.00019799,2]
[408318734,1773412232829,-500.0,0.00019799,2]
[408318735,1773412232838,-500.0,0.00019799,2]
[408318736,1773412232856,-500.0,0.00019799,2]
[408318737,1773412232865,-500.0,0.00019799,2]
[408318738,1773412232874,-173.42357322,0.00019799,2]
[408318739,1773412232883,-296.40306351,0.00019799,2]
[408318740,1773412232893,-241.49150813,0.00019799,2]
[408318741,1773412232901,-500.0,0.00019799,2]
[408318742,1773412232911,-342.45678999,0.00019799,2]
[408318743,1773412232920,-500.0,0.00019799,2]
[408318744,1773412232929,-255.05910033,0.00019799,2]
[408318745,1773412232938,-500.0,0.00019799,2]
[408318746,1773412232947,-500.0,0.00019799,2]
[408318747,1773412232956,-500.0,0.00019799,2]
[408318748,1773412232965,-500.0,0.00019799,2]
[408318749,1773412232975,-500.0,0.00019799,2]
[408318750,1773412232984,-500.0,0.00019799,2]
[408318751,1773412232993,-626.01963936,0.00019799,2]
[408318752,1773412233008,-506.82131153,0.00019799,2]
[408318753,1773412233017,-500.0,0.00019799,2]
[408318754,1773412233026,-500.0,0.00019799,2]
[408318755,1773412233037,-500.0,0.00019799,2]
[408318756,1773412233046,-500.0,0.00019799,2]
[408318757,1773412233055,-425.37131106,0.00019799,2]
[408318758,1773412233064,-243.86,0.00019799,2]
[408318759,1773412233074,-500.0,0.00019799,2]
[408318760,1773412233083,-500.0,0.00019799,2]
[408318761,1773412233092,-500.0,0.00019799,2]
[408318762,1773412233103,-500.0,0.00019799,2]
[408318763,1773412233113,-500.0,0.00019799,2]
[408318764,1773412233123,-500.0,0.00019799,2]
[408318765,1773412233132,-500.0,0.00019799,2]
[408318766,1773412233142,-500.0,0.00019799,2]
[408318767,1773412233151,-500.0,0.00019799,2]
[408318768,1773412233160,-229.59606702,0.00019799,2]
[408318769,1773412233169,-500.0,0.00019799,2]
[408318770,1773412233178,-500.0,0.00019799,2]
[408318771,1773412233189,-82817.91571037,0.000198,2]
[408318772,1773412233205,-454.55387908,0.000198,2]
[408318773,1773412233216,-3578.98522426,0.000198,2]
[408318774,1773412233235,-752.544207,0.000198,2]
[408318775,1773412233247,-740.01793856,0.000198,2]
[408318776,1773412233261,-343.32323318,0.000198,2]
[408318777,1773412233321,-27523.93015069,0.000198,2]
[408318778,1773412233332,-676.92004919,0.000198,2]
[408318781,1773412238275,-2495.18451563,0.000198,2]
[408318787,1773412238342,-342.98666636,0.000198,2]
[408318788,1773412238354,-10809.76491575,0.000198,2]
[408318790,1773412239039,-85.03320775,0.000198,2]
[408318801,1773412240377,-457.05008479,0.000198,2]
[408318802,1773412240389,-817332.58031739,0.000198,2]
[408318803,1773412240399,-158506.6992,0.000198,2]
[408318804,1773412240408,-4079.87,0.000198,2]
[408318805,1773412240418,-1625.7482403,0.00019811,2]
[408318806,1773412240427,-10287.24799925,0.00019811,2]
[408318807,1773412240437,-1625.7482403,0.00019833,2]
[408318808,1773412240446,-10287.24799925,0.00019833,2]
[408318809,1773412240455,-1625.7482403,0.00019855,2]
[408318810,1773412240464,-10287.24799925,0.00019856,2]
[408318811,1773412240474,-1625.7482403,0.00019878,2]
[408318812,1773412240483,-10287.24799925,0.00019878,2]
[408318813,1773412240493,-480.0,0.00019895,2]
[408318814,1773412240505,-2787.98540548,0.000199,2]
[408318815,1773412240514,-1359.6636,0.000199,2]
[408318816,1773412240524,-10662.4664,0.000199,2]
[408318817,1773412240533,-1000.0,0.000199,2]
[408318818,1773412240543,-1625.7482403,0.000199,2]
[408318819,1773412240552,-716.45041,0.000199,2]
[408318820,1773412240562,-10287.24799925,0.000199,2]
[408318821,1773412240571,-2078.57931478,0.000199,2]
[408318822,1773412240581,-2428.96,0.00019902,2]
[408318823,1773412240591,-1304.0,0.00019973,2]
[408318824,1773412240600,-500.0,0.00019973,2]
[408318825,1773412240610,-330.27342068,0.00019973,2]
[408318826,1773412240619,-500.0,0.00019973,2]
[408318827,1773412240628,-500.81396462,0.00019973,2]
[408318828,1773412240638,-500.0,0.00019973,2]
[408318829,1773412240647,-500.0,0.00019973,2]
[408318830,1773412240656,-621.90362035,0.00019973,2]
[408318831,1773412240666,-500.0,0.00019973,2]
[408318832,1773412240675,-500.3680898,0.00019973,2]
[408318833,1773412240684,-500.0,0.00019973,2]
[408318834,1773412240694,-161.62483646,0.00019973,2]
[408318835,1773412240704,-303.74834023,0.00019973,2]
[408318836,1773412240713,-550.0891429,0.00019973,2]
[408318837,1773412240726,-500.0,0.00019973,2]
[408318838,1773412240743,-500.0,0.00019973,2]
[408318839,1773412240752,-151.0,0.00019997,2]
[408318840,1773412240764,-300.0,0.00019999,2]
[408318841,1773412240773,-300.0,0.00019999,2]
[408318842,1773412240782,-666.0,0.00019999,2]
[408318843,1773412240791,-300.0,0.00019999,2]
[408318844,1773412240799,-500.0,0.00019999,2]
[408318845,1773412240809,-500.0,0.00019999,2]
[408318846,1773412240818,-500.0,0.00019999,2]
[408318847,1773412240827,-500.0,0.00019999,2]
[408318848,1773412240837,-500.0,0.00019999,2]
[408318849,1773412240846,-500.0,0.00019999,2]
[408318850,1773412240855,-500.0,0.00019999,2]
[408318851,1773412240864,-500.0,0.00019999,2]
[408318852,1773412240873,-500.0,0.00019999,2]
[408318853,1773412240882,-500.0,0.00019999,2]
[408318854,1773412240891,-500.0,0.00019999,2]
[408318855,1773412240901,-500.0,0.00019999,2]
[408318856,1773412240911,-500.0,0.00019999,2]
[408318857,1773412240920,-500.0,0.00019999,2]
[408318858,1773412240931,-500.0,0.00019999,2]
[408318859,1773412240941,-541.71297631,0.00019999,2]
[408318860,1773412240951,-500.0,0.00019999,2]
[408318861,1773412240960,-500.0,0.00019999,2]
[408318862,1773412240969,-500.0,0.00019999,2]
[408318863,1773412240978,-500.0,0.00019999,2]
[408318864,1773412240987,-500.0,0.00019999,2]
[408318865,1773412241000,-251.67,0.00019999,2]
[408318866,1773412241011,-500.0,0.00019999,2]
[408318867,1773412241021,-500.0,0.00019999,2]
[408318868,1773412241031,-547.90931335,0.00019999,2]
[408318869,1773412241041,-500.0,0.00019999,2]
[408318870,1773412241050,-500.0,0.00019999,2]
[408318871,1773412241059,-403.20461922,0.00019999,2]
[408318872,1773412241070,-500.0,0.00019999,2]
[408318873,1773412241079,-500.0,0.00019999,2]
[408318874,1773412241089,-500.0,0.00019999,2]
[408318875,1773412241099,-500.0,0.00019999,2]
[408318876,1773412241108,-500.0,0.00019999,2]
[408318877,1773412241118,-500.0,0.00019999,2]
[408318878,1773412241127,-500.0,0.00019999,2]
[408318879,1773412241136,-500.0,0.00019999,2]
[408318880,1773412241146,-500.0,0.00019999,2]
[408318881,1773412241156,-524.21910232,0.00019999,2]
[408318882,1773412241164,-2243288.75273149,0.0002,2]
[408318883,1773412241177,-34000.5,0.0002,2]
[408318884,1773412241192,-2907.11889992,0.0002,2]
[408318885,1773412241203,-488.52303721,0.0002,2]
[408318886,1773412241406,-88353.192401,0.0002,2]
[408318887,1773412241417,-2279.10000001,0.0002,2]
[408318888,1773412241437,-215139.35948585,0.0002,2]
[408318889,1773412241467,-2840049.76132972,0.0002,2]
[408318890,1773412241481,-3252.36327537,0.0002,2]
[408318943,1773412243402,-219962.32692531,0.0002,2]
[408318944,1773412243413,-42424.69549772,0.0002,2]
[408318945,1773412243425,-5616.78205853,0.0002,2]
[408318958,1773412246130,-98420.2149,0.000196,2]
[408318959,1773412246140,-651468.90463752,0.0002,2]
[408318960,1773412246151,-10988.27441838,0.0002,2]
[408318961,1773412246163,-651.16067323,0.0002,2]
[408318962,1773412246429,-11229.30983537,0.0002,2]
[408318963,1773412246441,-323076.79143899,0.0002,2]
[408318964,1773412246452,-1097.5860187,0.0002,2]
[408318965,1773412246463,-1654.16337177,0.0002,2]
[408318966,1773412246500,-1954.44308656,0.0002,2]
[408318969,1773412549343,191.11,0.00028241,120]
[408318970,1773413022718,771.90371,0.0003287,120]
[408318971,1773413045867,1157.4,0.00032877,120]
[408318972,1773413154103,-165.25044417,0.00018645,2]
[408318973,1773413154125,-117.6449639,0.00018684,2]
[408318974,1773413217715,500.0,0.0003287,120]
[408319001,1773413432477,-166.66,0.00017515,2]
[408319002,1773413432487,-166.66,0.00017884,2]
[408319003,1773413432496,-166.66,0.00018253,2]
[408319004,1773413432506,-344.959979,0.00018528,2]
[408319005,1773413432515,-166.66,0.00018622,2]
[408319006,1773413432525,-82.3550361,0.00018684,2]
[408319007,1773413432534,-2267.46388277,0.00018728,2]
[408319008,1773413432551,-1138.73611723,0.00018728,2]
[408319009,1773413432566,-150.0,0.00018745,2]
[408319010,1773413432576,-166.66,0.00018745,2]
[408319011,1773413432585,-1327.8,0.00018782,2]
[408319012,1773413432595,-1200.0,0.00018826,2]
[408319013,1773413432605,-300.0,0.00018827,2]
[408319014,1773413432615,-1538.38,0.00018828,2]
[408319015,1773413432624,-191.11,0.00018828,2]
[408319016,1773413432633,-521.79,0.0001888,2]
[408319017,1773413432644,-98754.2133,0.000189,2]
[408319018,1773413432654,-7396.52263299,0.00018942,2]
[408319019,1773413432663,-4067.72000362,0.0001899,2]
[408319020,1773413432673,-166.66,0.0001899,2]
[408319021,1773413432683,-1002.24584653,0.00018999,2]
[408319022,1773413432692,-475.0,0.00018999,2]
[408319023,1773413432701,-38938.939431,0.00019,2]
[408319024,1773413432711,-368.03,0.00019106,2]
[408319025,1773413432720,-3406.2,0.00019197,2]
[408319026,1773413432730,-1278.17151898,0.00019239,2]
[408319027,1773413432740,-250.0,0.00019267,2]
[408319028,1773413432749,-250.0,0.00019267,2]
[408319029,1773413432759,-1278.17151889,0.00019312,2]
[408319030,1773413432768,-637.38342981,0.00019315,2]
[408319031,1773413432778,-500.0,0.00019315,2]
[408319032,1773413432789,-237.85,0.00019329,3]
[408319033,1773413432798,-2865.04,0.00019329,2]
[408319034,1773413432807,-59007.81,0.00019339,2]
[408319035,1773413432816,-3199.71,0.00019339,2]
[408319036,1773413432826,-150.99,0.00019339,2]
[408319037,1773413432835,-299.99,0.00019339,7]
[408319038,1773413432845,-328.94,0.00019339,2]
[408319039,1773413432854,-430.52,0.00019339,2]
[408319040,1773413432863,-2917.19,0.00019339,2]
[408319041,1773413432872,-417.18,0.00019339,2]
[408319042,1773413432883,-9999.99,0.00019339,2]
[408319043,1773413432892,-4406.63,0.00019339,2]
[408319044,1773413432902,-9999.99,0.00019339,2]
[408319045,1773413432911,-999.99,0.00019339,2]
[408319046,1773413432920,-150.99,0.00019339,2]
[408319047,1773413432930,-516.89,0.00019339,2]
[408319048,1773413432939,-3875.06,0.00019339,2]
[408319049,1773413432948,-5339.1,0.00019339,2]
[408319050,1773413432958,-9336.88,0.00019339,2]
[408319051,1773413432967,-166.66,0.00019359,2]
[408319052,1773413432977,-1278.17151889,0.00019386,2]
[408319053,1773413432986,-15937.2944509,0.00019411,2]
[408319054,1773413432996,-1278.17151889,0.00019459,2]
[408319055,1773413433005,-160.0,0.00019498,2]
[408319056,1773413433015,-1785.0,0.000195,2]
[408319057,1773413433024,-2500.0,0.000195,2]
[408319058,1773413433034,-10412.14433495,0.00019502,2]
[408319059,1773413433043,-166.66,0.00019518,2]
[408319060,1773413433053,-1278.17151889,0.00019533,2]
[408319061,1773413433063,-10412.14433488,0.00019546,2]
[408319062,1773413433072,-1228.90553,0.00019548,2]
[408319063,1773413433081,-500.0,0.00019573,2]
[408319064,1773413433091,-500.0,0.00019573,2]
[408319065,1773413433100,-500.0,0.00019573,2]
[408319066,1773413433109,-151.0,0.00019588,2]
[408319067,1773413433119,-151.0,0.00019588,2]
[408319068,1773413433128,-151.0,0.00019588,2]
[408319069,1773413433138,-151.0,0.00019588,2]
[408319070,1773413433147,-151.0,0.00019588,2]
[408319071,1773413433157,-151.0,0.00019588,2]
[408319072,1773413433166,-151.0,0.00019588,2]
[408319073,1773413433176,-10412.14433488,0.0001959,2]
[408319074,1773413433185,-500.0,0.00019599,2]
[408319075,1773413433194,-500.0,0.00019599,2]
[408319076,1773413433203,-500.0,0.00019599,2]
[408319077,1773413433215,-500.0,0.00019599,2]
[408319078,1773413433224,-500.0,0.00019599,2]
[408319079,1773413433234,-1278.17151889,0.00019606,2]
[408319080,1773413433243,-10412.14433488,0.00019635,2]
[408319081,1773413433254,-500.0,0.00019635,2]
[408319082,1773413433263,-500.0,0.00019635,2]
[408319083,1773413433273,-500.0,0.00019635,2]
[408319084,1773413433283,-500.0,0.00019635,2]
[408319085,1773413433297,-500.0,0.00019635,2]
[408319086,1773413433306,-500.0,0.00019635,2]
[408319087,1773413433316,-500.0,0.00019635,2]
[408319088,1773413433327,-568.72585441,0.00019635,2]
[408319089,1773413433340,-500.0,0.00019635,2]
[408319090,1773413433361,-500.0,0.00019635,2]
[408319091,1773413433372,-500.0,0.00019635,2]
[408319092,1773413433382,-39601.66735266,0.00019636,2]
[408319093,1773413433393,-3406.2,0.00019665,2]
[408319094,1773413433403,-10412.14433488,0.00019679,2]
[408319095,1773413433413,-1278.17151889,0.0001968,2]
[408319096,1773413433423,-150.0,0.000197,2]
[408319097,1773413433432,-10088.01619471,0.000197,2]
[408319098,1773413433445,-574.45020529,0.000197,2]
[408319099,1773413433455,-1000.0,0.000197,2]
[408319100,1773413433464,-2792.07577759,0.00019701,2]
[408319101,1773413433473,-10412.14433488,0.00019723,2]
[408319102,1773413433483,-1278.17151889,0.00019753,2]
[408319103,1773413433493,-500.0,0.00019765,2]
[408319104,1773413433502,-10412.14433488,0.00019767,2]
[408319105,1773413433512,-500.0,0.00019799,2]
[408319106,1773413433521,-500.0,0.00019799,2]
[408319107,1773413433530,-500.0,0.00019799,2]
[408319108,1773413433539,-500.0,0.00019799,2]
[408319109,1773413433548,-500.0,0.00019799,2]